bitfinex-derivatives/quotes_ETHF0:USTF0_20250507
["timestamp","ask_amount","ask_price","bid_price","bid_amount"]
[1746586592763,2.8989,1825.9,1825.8,3.4193]
[1746586595375,8.3651685,1825.9,1825.8,3.4193]
[1746586596970,8.3651685,1825.9,1825.8,1.7282]
[1746586597172,8.3651685,1825.9,1825.8,0.8723]
[1746586597374,8.3651685,1825.9,1825.8,2.5802]
[1746586599074,1.09546,1825.8,1825.7,3.2078]
[1746586599374,2.83356,1825.8,1825.7,3.2078]
[1746586599977,1.09558,1825.6,1825.5,2.69674]
[1746586600167,1.19458,1825.6,1825.5,5.90454]
[1746586603778,1.19458,1825.6,1825.5,4.8089]
[1746586604771,2.83908,1825.6,1825.5,4.8089]
[1746586605873,2.83908,1825.6,1825.5,5.90454]
[1746586605874,0.099,1825.6,1825.5,5.90454]
[1746586606570,1.19458,1825.6,1825.5,4.8089]
[1746586606770,1.19458,1825.6,1825.5,1.6011]
[1746586607177,2.85468,1825.6,1825.5,1.6011]
[1746586612080,1.19458,1825.6,1825.5,1.6011]
[1746586614581,0.099,1825.6,1825.5,1.6011]
[1746586615382,0.099,1825.6,1825.5,2.69674]
[1746586615574,0.099,1825.6,1825.5,1.6011]
[1746586615884,0.099,1825.6,1825.5,2.69674]
[1746586624185,0.099,1825.7,1825.6,1.09558]
[1746586624385,0.099,1825.7,1825.6,4.30338]
[1746586626191,0.099,1825.7,1825.5,1.6011]
[1746586626391,0.099,1825.7,1825.4,4.8333]
[1746586626392,1.09564,1825.5,1825.4,1.6255]
[1746586626591,1.09564,1825.5,1825.4,5.929]
[1746586626884,1.6591,1825.6,1825.4,5.92896]
[1746586627085,1.6591,1825.6,1825.4,0.813]
[1746586627288,6.6591,1825.6,1825.3,1.7573]
[1746586627487,0.8835,1825.5,1825.4,1.09567]
[1746586627787,0.099,1825.5,1825.4,1.09567]
[1746586628393,0.099,1825.5,1825.4,4.30347]
[1746586633094,0.099,1825.6,1825.5,1.09564]
[1746586633388,0.099,1825.6,1825.5,4.48324]
[1746586636101,1.19458,1825.6,1825.5,4.48324]
[1746586636500,1.6927,1825.6,1825.5,4.48324]
[1746586636902,0.099,1825.6,1825.5,4.48324]
[1746586639106,0.099,1825.7,1825.6,1.09558]
[1746586639308,0.099,1825.7,1825.6,5.89798]
[1746586640905,1.19452,1825.7,1825.6,4.8024]
[1746586641103,2.85492,1825.7,1825.6,4.8024]
[1746586641310,1.7594,1825.7,1825.6,5.89798]
[1746586641506,0.099,1825.7,1825.6,5.89798]
[1746586642211,1.19452,1825.7,1825.6,4.8024]
[1746586643021,1.97872,1825.7,1825.6,4.8024]
[1746586644018,1.97872,1825.7,1825.6,3.2078]
[1746586644217,2.81842,1825.7,1825.6,3.2078]
[1746586645118,4.41502,1825.7,1825.6,3.2078]
[1746586649522,1.09558,1825.6,1825.5,3.5417]
[1746586649724,2.82738,1825.6,1825.5,6.7495]
[1746586650323,2.82738,1825.6,1825.5,3.5417]
[1746586650512,1.7318,1825.6,1825.5,3.2078]
[1746586650717,2.73912,1825.5,1825.1,3.3236]
[1746586650916,3.67885,1825.4,1825.2,1.09581]
[1746586651224,2.92656,1825.3,1825.2,1.09581]
[1746586651619,2.92656,1825.3,1825.2,2.78501]
[1746586655430,1.19476,1825.3,1825.2,2.78501]
[1746586656025,0.099,1825.3,1825.2,2.78501]
[1746586657232,1.19476,1825.3,1825.2,2.78501]
[1746586657533,0.099,1825.3,1825.2,2.78501]
[1746586659033,1.19476,1825.3,1825.2,2.78501]
[1746586659333,0.099,1825.3,1825.2,2.78501]
[1746586659834,1.19476,1825.3,1825.2,2.78501]
[1746586660226,0.099,1825.3,1825.2,2.78501]
[1746586662735,0.099,1825.3,1825.2,5.99281]
[1746586667838,1.19476,1825.3,1825.2,5.99281]
[1746586668039,1.19476,1825.3,1825.2,2.78501]
[1746586668235,0.099,1825.3,1825.2,2.78501]
[1746586668533,1.19476,1825.3,1825.2,2.78501]
[1746586673340,1.19476,1825.3,1825.2,1.6892]
[1746586674036,2.81916,1825.3,1825.2,1.6892]
[1746586674335,1.09598,1825.0,1824.8,7.2722781]
[1746586674540,0.099,1824.9,1824.8,10.0094381]
[1746586675543,0.099,1824.9,1824.8,11.6624381]
[1746586676538,1.0959,1825.1,1825.0,1.09594]
[1746586676738,1.0959,1825.1,1824.8,13.7741781]
[1746586676739,1.6244,1825.2,1824.9,1.653]
[1746586676938,1.09594,1825.1,1824.9,2.74897]
[1746586677138,1.09594,1825.1,1825.0,1.7005]
[1746586677641,2.78424,1825.1,1825.0,1.7005]
[1746586678240,6.38424,1825.1,1825.0,1.7005]
[1746586678747,4.69594,1825.1,1825.0,2.79644]
[1746586679140,1.09594,1825.1,1825.0,2.79644]
[1746586681750,2.68806,1825.2,1825.1,1.09588]
[1746586682049,2.68806,1825.2,1825.1,4.45838]
[1746586682242,1.09586,1825.2,1825.1,4.45838]
[1746586684947,1.09581,1825.3,1825.2,1.09582]
[1746586685255,1.09581,1825.3,1825.2,2.82822]
[1746586685752,1.09581,1825.3,1825.2,1.7324]
[1746586687353,1.09581,1825.3,1825.2,2.82822]
[1746586688456,1.09581,1825.3,1825.2,1.7324]
[1746586688752,1.09581,1825.3,1825.2,2.82822]
[1746586691354,15.7390385,1825.6,1825.2,4.9402]
[1746586691355,8.6740685,1825.6,1825.2,4.9402]
[1746586691567,1.0957,1825.4,1825.3,2.82243]
[1746586692055,2.75779,1825.5,1825.3,2.82243]
[1746586692260,2.75779,1825.5,1825.4,1.7176]
[1746586692461,2.75779,1825.5,1825.4,4.5224]
[1746586692758,1.6621,1825.5,1825.4,4.5224]
[1746586692959,1.09564,1825.5,1825.4,4.5224]
[1746586694765,2.76533,1825.6,1825.5,1.09564]
[1746586694961,2.76533,1825.6,1825.5,2.81324]
[1746586696466,1.09563,1825.6,1825.5,2.81324]
[1746586697563,5.4662685,1825.7,1825.6,1.09558]
[1746586697863,6.5617885,1825.7,1825.6,2.79538]
[1746586698064,1.09558,1825.6,1825.5,1.09562]
[1746586698364,2.83498,1825.6,1825.5,1.09562]
[1746586698563,2.83498,1825.6,1825.5,2.74342]
[1746586698869,1.7394,1825.6,1825.5,2.74342]
[1746586699082,5.4662685,1825.7,1825.6,1.09558]
[1746586699274,5.4662685,1825.7,1825.6,2.74338]
[1746586699476,6.5617985,1825.7,1825.6,2.74338]
[1746586700083,5.4662685,1825.7,1825.6,2.74338]
[1746586700379,6.5617885,1825.7,1825.6,1.6478]
[1746586700575,1.09552,1825.7,1825.6,1.6478]
[1746586700780,2.83492,1825.7,1825.6,1.6478]
[1746586704786,2.83492,1825.7,1825.6,2.74338]
[1746586705276,6.43492,1825.7,1825.6,2.74338]
[1746586706181,2.83492,1825.7,1825.6,2.74338]
[1746586708085,6.43492,1825.7,1825.6,2.74338]
[1746586710193,2.83492,1825.7,1825.6,2.74338]
[1746586712194,3.6,1825.7,1825.6,2.74338]
[1746586712492,4.69552,1825.7,1825.6,2.74338]
[1746586713294,1.09552,1825.7,1825.6,2.74338]
[1746586713591,2.79991,1825.8,1825.7,1.09552]
[1746586713791,2.79991,1825.8,1825.7,2.75142]
[1746586716192,6.39991,1825.8,1825.7,2.75142]
[1746586716781,1.09552,1825.7,1825.6,1.09555]
[1746586716981,2.82142,1825.7,1825.6,1.09555]
[1746586717186,2.82142,1825.7,1825.5,2.8325]
[1746586717387,1.09558,1825.6,1825.5,2.8325]
[1746586727900,1.09558,1825.6,1825.5,1.7369]
[1746586728108,12.919,1825.6,1825.1,1.09586]
[1746586728299,1.09582,1825.2,1825.1,4.48638]
[1746586729206,1.09582,1825.2,1825.1,11.7586581]
[1746586731903,1.09582,1825.2,1825.1,10.6627781]
[1746586733703,1.09582,1825.2,1825.1,3.3905]
[1746586737205,4.69582,1825.2,1825.1,3.3905]
[1746586738205,1.09582,1825.2,1825.1,3.3905]
[1746586739806,1.09582,1825.2,1825.1,4.48638]
[1746586740910,1.09582,1825.2,1825.1,3.3905]
[1746586741207,4.30362,1825.2,1825.1,3.3905]
[1746586741815,4.30362,1825.2,1825.1,4.48638]
[1746586742296,4.30362,1825.2,1825.1,3.3905]
[1746586742609,4.30362,1825.2,1825.1,4.48638]
[1746586743201,1.09582,1825.2,1825.1,4.48638]
[1746586743408,4.30362,1825.2,1825.1,4.48638]
[1746586744513,4.30362,1825.2,1825.1,3.3905]
[1746586746107,1.09582,1825.2,1825.1,3.3905]
[1746586746307,4.30362,1825.2,1825.1,3.3905]
[1746586746497,1.09582,1825.2,1825.1,3.3905]
[1746586750111,1.09582,1825.2,1825.1,2.5578]
[1746586750810,2.72602,1825.2,1825.1,2.5578]
[1746586751304,5.93382,1825.2,1825.1,2.5578]
[1746586752306,9.53382,1825.2,1825.1,2.5578]
[1746586753211,4.69582,1825.2,1825.1,2.5578]
[1746586754113,1.09582,1825.2,1825.1,2.5578]
[1746586754805,1.09582,1825.2,1825.1,3.65368]
[1746586758115,7.5268,1825.6,1825.1,2.5578]
[1746586758416,1.09565,1825.5,1825.4,1.09566]
[1746586758609,1.0957,1825.4,1825.3,2.81451]
[1746586758810,1.09568,1825.5,1825.3,2.81451]
[1746586759011,1.09568,1825.5,1825.4,2.5474]
[1746586759615,1.09568,1825.5,1825.4,3.6431]
[1746586760408,1.09563,1825.6,1825.5,1.09564]
[1746586760606,1.09563,1825.6,1825.5,2.79544]
[1746586765221,1.09563,1825.6,1825.5,1.6998]
[1746586765415,1.09563,1825.6,1825.5,2.79544]
[1746586767117,1.09563,1825.6,1825.5,1.6998]
[1746586767318,2.81463,1825.6,1825.5,1.6998]
[1746586768520,2.81463,1825.6,1825.5,2.79544]
[1746586771927,2.81463,1825.6,1825.5,1.6998]
[1746586772227,2.81463,1825.6,1825.5,2.79544]
[1746586772521,2.81463,1825.6,1825.5,1.6998]
[1746586772723,2.81463,1825.6,1825.5,2.5094]
[1746586773121,2.81463,1825.6,1825.5,3.60504]
[1746586773425,2.81463,1825.6,1825.5,2.5094]
[1746586779830,1.09563,1825.6,1825.5,3.60504]
[1746586780223,12.9890685,1825.7,1825.5,2.5094]
[1746586780428,14.0845885,1825.7,1825.6,1.6252]
[1746586781834,14.0845885,1825.7,1825.6,2.72078]
[1746586784136,9.7812685,1825.7,1825.6,2.72078]
[1746586784335,10.8767885,1825.7,1825.6,2.72078]
[1746586785542,6.5617885,1825.7,1825.6,2.72078]
[1746586786842,5.4662685,1825.7,1825.6,2.72078]
[1746586787444,6.5617885,1825.7,1825.6,2.72078]
[1746586789941,5.4662685,1825.7,1825.6,2.72078]
[1746586791750,6.5617885,1825.7,1825.6,2.72078]
[1746586793037,8.2392885,1825.7,1825.6,2.72078]
[1746586793949,6.5617885,1825.7,1825.6,2.72078]
[1746586800348,8.1531885,1825.7,1825.6,2.72078]
[1746586800558,2.68692,1825.7,1825.6,2.72078]
[1746586800747,1.09558,1825.6,1825.5,1.90521]
[1746586800948,1.09564,1825.5,1825.4,4.0364]
[1746586801658,2.68704,1825.5,1825.4,1.9243]
[1746586801861,2.68704,1825.5,1825.4,1.0957]
[1746586802157,3.47084,1825.5,1825.4,1.0957]
[1746586802559,1.0957,1825.4,1825.3,3.65402]
[1746586802756,3.47089,1825.5,1825.4,1.0957]
[1746586802951,2.68709,1825.5,1825.4,1.0957]
[1746586803258,2.68704,1825.5,1825.4,2.8039]
[1746586804155,1.5914,1825.5,1825.4,2.8039]
[1746586806363,2.68704,1825.5,1825.4,2.8039]
[1746586806664,1.5914,1825.5,1825.4,2.8039]
[1746586806864,2.68704,1825.5,1825.4,2.8039]
[1746586807360,1.5914,1825.5,1825.4,2.8039]
[1746586807751,5.39863,1825.6,1825.4,2.8039]
[1746586807752,14.0762685,1825.7,1825.4,1.7082]
[1746586807957,5.4662685,1825.7,1825.6,1.09558]
[1746586808363,5.4662685,1825.7,1825.6,2.71058]
[1746586810465,5.4662685,1825.7,1825.6,5.91838]
[1746586810666,11.76694396,1825.9,1825.8,1.09546]
[1746586810667,2.75472,1825.9,1825.8,1.09546]
[1746586811068,2.75472,1825.9,1825.8,2.78476]
[1746586811265,1.09542,1825.9,1825.8,2.78476]
[1746586813165,5.4662685,1826.0,1825.9,1.0954]
[1746586813366,5.4662685,1826.0,1825.9,2.813]
[1746586813764,6.5616085,1826.0,1825.9,1.7176]
[1746586814064,1.0954,1825.9,1825.8,5.99256]
[1746586814263,2.8399,1825.9,1825.8,4.8971]
[1746586814869,2.8399,1825.9,1825.8,5.99256]
[1746586815770,1.7445,1825.9,1825.8,5.99256]
[1746586816970,2.8399,1825.9,1825.8,5.99256]
[1746586817970,1.7445,1825.9,1825.8,5.99256]
[1746586818372,1.09539,1826.0,1825.9,1.0954]
[1746586818559,1.09539,1826.0,1825.9,2.7758]
[1746586818760,8.2722985,1826.1,1825.9,2.77576]
[1746586818965,8.2722985,1826.1,1825.9,1.6804]
[1746586819167,8.2722985,1826.1,1826.0,1.09534]
[1746586819571,8.2722985,1826.1,1825.9,2.77576]
[1746586819772,1.09534,1826.0,1825.9,2.77576]
[1746586822268,8.2722785,1826.1,1826.0,1.09534]
[1746586822465,8.2722785,1826.1,1826.0,2.81614]
[1746586822870,6.5615785,1826.1,1826.0,2.81614]
[1746586824173,1.09531,1826.1,1826.0,2.81614]
[1746586824378,1.09528,1826.1,1826.0,2.81609]
[1746586825076,1.09528,1826.1,1826.0,1.7208]
[1746586825273,6.32018,1826.1,1826.0,2.81614]
[1746586825972,4.69528,1826.1,1826.0,2.81614]
[1746586826176,1.09528,1826.1,1826.0,2.81614]
[1746586827679,8.6740685,1826.3,1826.0,1.7208]
[1746586827974,9.7692485,1826.3,1826.2,1.09522]
[1746586828174,1.09522,1826.2,1826.1,4.42113]
[1746586828971,13.9709685,1826.3,1826.1,4.42113]
[1746586829177,11.4661685,1826.3,1826.2,1.09522]
[1746586829476,11.4661685,1826.3,1826.2,2.81972]
[1746586830179,15.0661685,1826.3,1826.2,2.81972]
[1746586830780,9.5999,1826.3,1826.2,2.81972]
[1746586834079,4.69516,1826.3,1826.2,1.7245]
[1746586834383,6.30836,1826.3,1826.2,2.81972]
[1746586834682,6.30836,1826.3,1826.2,1.7245]
[1746586834884,1.09522,1826.2,1826.1,1.5969]
[1746586835070,2.70842,1826.2,1826.1,2.69218]
[1746586835883,2.70842,1826.2,1826.1,1.5969]
[1746586836180,6.30842,1826.2,1826.1,2.69218]
[1746586836576,5.2132,1826.2,1826.1,2.69218]
[1746586836882,6.30842,1826.2,1826.1,1.5969]
[1746586837683,6.30842,1826.2,1826.1,0.8005]
[1746586838671,6.30842,1826.2,1826.1,1.89578]
[1746586838875,6.30842,1826.2,1826.1,3.51808]
[1746586841085,6.30842,1826.2,1826.1,2.4228]
[1746586841482,6.30842,1826.2,1826.1,3.2828]
[1746586844480,6.30842,1826.2,1826.1,4.37808]
[1746586844676,6.30842,1826.2,1826.1,3.2828]
[1746586844987,6.30842,1826.2,1826.1,4.37808]
[1746586845984,4.69522,1826.2,1826.1,4.37808]
[1746586846579,3.6,1826.2,1826.1,4.37808]
[1746586846884,4.69522,1826.2,1826.1,4.37808]
[1746586847087,3.6,1826.2,1826.1,4.37808]
[1746586848080,18.3561585,1826.5,1826.4,1.0951]
[1746586848683,18.3561585,1826.5,1826.4,3.5509]
[1746586848891,10.8553585,1826.5,1826.4,3.5509]
[1746586849190,9.0662685,1826.5,1826.4,3.5509]
[1746586850093,5.4662685,1826.5,1826.4,3.5509]
[1746586850691,6.5613085,1826.5,1826.4,3.5509]
[1746586851189,10.1613085,1826.5,1826.4,3.5509]
[1746586851489,4.69504,1826.5,1826.4,3.5509]
[1746586851793,3.6,1826.5,1826.4,3.5509]
[1746586853091,1.095,1826.6,1826.5,1.09504]
[1746586853292,1.095,1826.6,1826.5,2.80684]
[1746586854088,4.695,1826.6,1826.5,2.80684]
[1746586854790,3.6,1826.6,1826.5,2.80684]
[1746586855093,12.9680685,1826.8,1826.5,2.80684]
[1746586855094,1.09494,1826.7,1826.6,1.09498]
[1746586855285,1.09494,1826.7,1826.6,3.67968]
[1746586855485,14.6076685,1826.8,1826.6,2.5847]
[1746586855784,15.7025285,1826.8,1826.7,2.5599]
[1746586856183,19.3025285,1826.8,1826.7,2.5599]
[1746586856988,2.73731,1826.7,1826.2,3.2078]
[1746586857186,1.09504,1826.5,1826.4,1.6797]
[1746586857586,2.82084,1826.5,1826.4,1.6797]
[1746586858193,6.42084,1826.5,1826.4,1.6797]
[1746586858391,1.0951,1826.4,1826.3,0.8417]
[1746586858686,2.8209,1826.4,1826.3,0.8417]
[1746586858892,6.0287,1826.4,1826.3,0.8417]
[1746586859088,1.09516,1826.3,1826.2,1.6797]
[1746586859285,2.82096,1826.3,1826.2,1.6797]
[1746586859493,1.7258,1826.3,1826.0,0.8193]
[1746586859687,13.60484,1826.2,1825.8,0.8751]
[1746586859994,13.60484,1826.2,1825.6,3.51685]
[1746586859995,1.09549,1825.8,1825.6,3.51685]
[1746586860187,1.09549,1825.8,1825.7,1.602]
[1746586860390,1.09552,1825.7,1825.6,1.6944]
[1746586860583,1.09558,1825.6,1825.5,8.8742781]
[1746586861993,4.30338,1825.6,1825.5,8.8742781]
[1746586862191,7.90338,1825.6,1825.5,7.2722781]
[1746586862392,9.61108,1825.6,1825.5,7.2722781]
[1746586862589,1.09564,1825.5,1825.4,0.8751]
[1746586862793,2.84534,1825.5,1825.4,0.8751]
[1746586863096,6.44534,1825.5,1825.4,0.8751]
[1746586863491,6.44534,1825.5,1825.4,2.5338]
[1746586863696,3.6,1825.5,1825.4,3.6295]
[1746586864200,1.0956,1825.6,1825.4,3.6295]
[1746586864393,1.09558,1825.6,1825.5,1.6587]
[1746586864589,8.584,1825.7,1825.5,1.6587]
[1746586864792,4.294,1825.7,1825.6,1.09558]
[1746586865593,8.6740685,1825.8,1825.7,1.09552]
[1746586869408,3.2078,1825.8,1825.7,1.09552]
[1746586869600,1.09543,1825.9,1825.7,1.09552]
[1746586869905,1.09543,1825.9,1825.8,3.4778]
[1746586872310,1.09543,1825.9,1825.8,4.57326]
[1746586872603,7.08469,1826.0,1825.8,4.57326]
[1746586872804,7.08469,1826.0,1825.9,1.6457]
[1746586876000,5.38939,1826.0,1825.9,1.6457]
[1746586878299,6.0497,1826.0,1825.5,7.4978]
[1746586878495,1.09555,1825.7,1825.6,3.1889]
[1746586878907,2.85125,1825.7,1825.6,3.1889]
[1746586881500,2.85125,1825.7,1825.4,1.09566]
[1746586881501,1.09564,1825.5,1825.4,0.8268]
[1746586881702,4.30344,1825.5,1825.4,1.7615]
[1746586882205,9.61724,1825.5,1825.4,1.7615]
[1746586882707,1.0957,1825.4,1825.3,0.8228]
[1746586882906,2.8095,1825.4,1825.3,2.5843]
[1746586883098,6.4095,1825.4,1825.3,2.5843]
[1746586884109,2.8095,1825.4,1825.3,2.5843]
[1746586884496,1.09576,1825.3,1825.2,0.8268]
[1746586884702,1.09576,1825.3,1824.5,7.2722781]
[1746586884703,5.47912,1825.2,1824.5,7.2722781]
[1746586884897,1.09612,1824.7,1824.6,1.6955]
[1746586885098,1.09618,1824.6,1824.5,8.1431781]
[1746586885406,2.80998,1824.6,1824.5,9.8386781]
[1746586885903,2.80998,1824.6,1824.5,8.9677781]
[1746586886104,6.40998,1824.6,1824.5,8.9677781]
[1746586888211,2.80998,1824.6,1824.5,8.9677781]
[1746586888515,2.80998,1824.6,1824.5,1.6955]
[1746586889912,1.09618,1824.6,1824.5,1.6955]
[1746586890302,3.2078,1824.7,1824.5,1.6955]
[1746586890303,4.30396,1824.7,1824.5,1.6955]
[1746586890503,1.09618,1824.6,1824.5,1.6955]
[1746586892610,2.82588,1824.6,1824.5,1.6955]
[1746586893012,1.09624,1824.5,1824.4,0.8253]
[1746586893210,2.72594,1824.5,1824.4,2.5505]
[1746586894214,1.09624,1824.5,1824.4,2.5505]
[1746586894405,4.8375,1824.7,1824.4,2.5505]
[1746586894608,1.09621,1824.6,1824.4,3.6468]
[1746586894812,1.09624,1824.5,1824.4,2.5505]
[1746586907719,4.30404,1824.5,1824.4,2.5505]
[1746586909430,1.0963,1824.4,1824.3,0.8709]
[1746586909634,1.09636,1824.3,1824.2,1.7268]
[1746586909932,1.09648,1824.1,1824.0,0.8348]
[1746586910635,1.09648,1824.1,1824.0,1.93134]
[1746586911034,1.09648,1824.1,1824.0,0.8348]
[1746586911235,1.09648,1824.1,1824.0,2.5674]
[1746586914935,1.09648,1824.1,1824.0,3.66394]
[1746586916336,1.09647,1824.2,1824.1,1.09647]
[1746586916524,1.09642,1824.2,1824.1,1.09647]
[1746586916731,1.09646,1824.2,1824.1,1.09644]
[1746586917036,1.09648,1824.1,1824.0,1.93133]
[1746586917537,1.09648,1824.1,1824.0,0.8348]
[1746586918032,1.09648,1824.1,1824.0,1.93134]
[1746586918237,2.75417,1824.2,1824.1,1.09648]
[1746586918425,1.6577,1824.2,1824.1,1.09648]
[1746586918631,1.09643,1824.2,1824.0,0.8348]
[1746586919441,1.09644,1824.2,1824.1,1.09643]
[1746586920340,1.09644,1824.2,1824.0,1.93129]
[1746586920636,1.09648,1824.1,1824.0,1.93129]
[1746586920937,1.09647,1824.2,1824.0,1.93129]
[1746586921440,1.09647,1824.2,1824.1,1.09648]
[1746586923133,1.09647,1824.2,1823.7,3.2078]
[1746586923134,3.2078,1824.2,1823.7,3.2078]
[1746586923329,1.09666,1823.8,1823.7,3.2078]
[1746586923541,1.09666,1823.8,1823.7,4.30452]
[1746586923932,1.09666,1823.8,1823.7,3.2078]
[1746586924132,1.09666,1823.8,1823.7,4.30452]
[1746586925338,1.09664,1823.9,1823.8,1.09666]
[1746586925535,3.2078,1824.4,1823.8,4.29]
[1746586925736,1.09642,1824.3,1824.1,1.09643]
[1746586925941,1.09636,1824.3,1824.2,1.6636]
[1746586926535,1.09636,1824.3,1824.2,2.76002]
[1746586926945,1.09636,1824.3,1824.2,1.6636]
[1746586927137,1.09636,1824.3,1824.2,2.76002]
[1746586930751,6.06075,1824.4,1824.3,1.09636]
[1746586931446,4.30415,1824.4,1824.3,1.09636]
[1746586931941,1.09635,1824.4,1824.3,1.633]
[1746586932147,1.09635,1824.4,1824.3,2.72936]
[1746586934149,1.656,1824.5,1824.3,2.72931]
[1746586934345,2.75229,1824.5,1824.4,1.7548]
[1746586935742,1.09629,1824.5,1824.4,2.8511]
[1746586935951,1.09629,1824.5,1824.4,1.7548]
[1746586936448,2.80009,1824.5,1824.4,1.7548]
[1746586936647,1.09642,1824.2,1824.1,1.6432]
[1746586937449,2.80022,1824.2,1824.1,1.6432]
[1746586938341,1.09654,1824.0,1823.9,1.6936]
[1746586938550,1.0966,1823.9,1823.8,1.6432]
[1746586938852,2.7467,1823.9,1823.8,1.6432]
[1746586941145,6.3467,1823.9,1823.8,1.6432]
[1746586942147,2.7467,1823.9,1823.8,1.6432]
[1746586943942,1.09666,1823.8,1823.7,0.8167]
[1746586944146,2.70936,1823.8,1823.7,0.8167]
[1746586944456,5.91716,1823.8,1823.7,0.8167]
[1746586945252,9.51716,1823.8,1823.7,0.8167]
[1746586946342,5.91716,1823.8,1823.7,0.8167]
[1746586946750,1.09672,1823.7,1823.6,2.4751]
[1746586947054,2.85382,1823.7,1823.6,2.4751]
[1746586949555,1.09678,1823.6,1823.5,0.8154]
[1746586949754,1.09678,1823.6,1823.5,2.4572]
[1746586953048,2.75008,1823.6,1823.5,2.4572]
[1746586957463,1.09678,1823.6,1823.5,2.4572]
[1746586960568,5.38777,1823.7,1823.5,2.4572]
[1746586960767,5.38777,1823.7,1823.6,1.7353]
[1746586964056,5.38777,1823.7,1823.6,2.83208]
[1746586964462,5.38777,1823.7,1823.6,1.7353]
[1746586966064,1.09678,1823.6,1823.5,0.8154]
[1746586966264,4.30458,1823.6,1823.5,2.5613]
[1746586966561,1.09684,1823.5,1823.4,0.8303]
[1746586966762,2.70954,1823.5,1823.4,0.8303]
[1746586967157,6.30954,1823.5,1823.4,0.8303]
[1746586967362,6.30954,1823.5,1823.4,2.5762]
[1746586968157,2.70954,1823.5,1823.4,2.5762]
[1746586969871,1.09684,1823.5,1823.4,2.5762]
[1746586971069,2.84034,1823.5,1823.4,2.5762]
[1746586971269,1.0969,1823.4,1823.3,0.8516]
[1746586971469,2.8404,1823.4,1823.3,0.8516]
[1746586971972,6.0482,1823.4,1823.3,0.8516]
[1746586972167,6.0482,1823.4,1823.3,2.4702]
[1746586973274,6.0482,1823.4,1823.3,1.6186]
[1746586973474,1.09696,1823.3,1823.2,0.855]
[1746586973668,2.85366,1823.3,1823.2,0.855]
[1746586973869,2.85366,1823.3,1823.2,2.4868]
[1746586974771,1.09696,1823.3,1823.2,2.4868]
[1746586980586,2.74264,1823.2,1822.8,4.30504]
[1746586980877,1.09714,1823.0,1822.9,3.4061]
[1746586981872,1.09714,1823.0,1822.9,4.5033]
[1746586982074,10.23919,1823.4,1822.9,3.4061]
[1746586982377,1.09708,1823.1,1823.0,2.84459]
[1746586982570,1.09708,1823.1,1823.0,1.09709]
[1746586982766,1.09704,1823.2,1823.1,1.09705]
[1746586982978,1.09709,1823.1,1823.0,1.0971]
[1746586983179,1.09706,1823.2,1823.1,1.09707]
[1746586983478,10.23919,1823.4,1822.9,1.6738]
[1746586983677,1.09708,1823.1,1823.0,1.09714]
[1746586983880,1.09707,1823.2,1823.1,1.09707]
[1746586984075,1.09698,1823.3,1823.2,1.09698]
[1746586984273,7.4978,1823.6,1823.0,5.95053]
[1746586984472,5.4662685,1823.7,1823.2,5.95036]
[1746586984673,5.4662685,1823.7,1823.6,1.09678]
[1746586984873,10.10894396,1823.7,1823.6,1.09678]
[1746586986373,9.01222396,1823.7,1823.6,4.30458]
[1746586987784,1.09661,1823.9,1823.8,1.09666]
[1746586988179,1.09661,1823.9,1823.7,1.94446]
[1746586988382,1.09666,1823.8,1823.7,1.94448]
[1746586988581,1.09666,1823.8,1823.7,0.8478]
[1746586988781,1.09666,1823.8,1823.7,1.94452]
[1746586989281,1.09664,1823.9,1823.8,1.09666]
[1746586989476,5.46690981,1824.0,1823.8,1.09666]
[1746586989678,5.46690981,1824.0,1823.9,1.0966]
[1746586990277,5.46690981,1824.0,1823.9,4.6966]
[1746586990477,5.46690981,1824.0,1823.9,13.9856]
[1746586991183,7.0021229,1824.1,1824.0,1.09654]
[1746586991377,7.0021229,1824.1,1824.0,13.59134]
[1746586991378,5.8881129,1824.1,1824.0,13.59134]
[1746586991582,6.28672686,1824.2,1824.1,1.09648]
[1746586991781,12.62830384,1824.6,1824.4,1.0963]
[1746586991974,12.62830384,1824.6,1824.5,1.09624]
[1746586992278,7.96796829,1824.7,1824.6,1.09618]
[1746586992476,6.81091829,1824.7,1824.6,4.30398]
[1746586992676,3.71994829,1824.7,1824.6,9.30398]
[1746586993081,3.71994829,1824.7,1824.6,4.30398]
[1746586995386,1.6238,1824.8,1824.7,1.09612]
[1746586997078,1.6238,1824.8,1824.7,4.69612]
[1746586998884,2.71986,1824.8,1824.7,4.69612]
[1746587000293,1.6238,1824.8,1824.7,4.69612]
[1746587001992,1.6238,1824.8,1824.7,6.37542]
[1746587002798,2.71986,1824.8,1824.7,3.6]
[1746587003187,2.71989,1824.8,1824.7,1.09612]
[1746587003492,2.71986,1824.8,1824.7,1.09612]
[1746587003685,1.6238,1824.8,1824.6,1.09614]
[1746587003886,1.6066,1824.7,1824.6,1.09614]
[1746587004189,1.6066,1824.7,1824.6,4.30394]
[1746587005193,1.6066,1824.7,1824.5,3.6]
[1746587005391,1.92818,1824.6,1824.5,3.6]
[1746587005688,0.832,1824.6,1824.5,4.69624]
[1746587006086,0.832,1824.6,1824.5,6.30174]
[1746587006395,3.63198,1824.6,1824.5,3.6]
[1746587006688,6.83978,1824.6,1824.5,3.6]
[1746587006880,6.83978,1824.6,1824.0,0.2571]
[1746587006881,2.74074,1824.5,1824.0,1.09652]
[1746587007088,1.09648,1824.2,1824.0,1.09652]
[1746587007286,2.74076,1824.4,1824.0,1.09652]